bitfinex-derivatives/quotes_SOLF0:USTF0_20250714
["timestamp","ask_amount","ask_price","bid_price","bid_amount"]
[1752516644273,3.59,163.93,163.87,3.34]
[1752516644574,3.59,163.92,163.9,6.1007]
[1752516644776,3.59,163.92,163.87,3.34]
[1752516644777,3.59,163.92,163.88,3.34]
[1752516644977,9.65605302,163.94,163.91,6.1002]
[1752516645476,3.59,163.93,163.91,6.1002]
[1752516648082,3.59,163.93,163.92,6.1002]
[1752516648382,3.59,163.93,163.9,3.34]
[1752516648682,3.59,163.93,163.91,6.1002]
[1752516648877,3.59,163.93,163.9,3.34]
[1752516649077,3.59,163.93,163.92,9.4399]
[1752516649383,3.59,163.93,163.92,6.0999]
[1752516650680,3.59,163.93,163.92,9.4399]
[1752516651485,3.59,163.95,163.93,9.4395]
[1752516651673,3.59,163.95,163.93,6.0995]
[1752516651983,3.59,163.95,163.94,6.0994]
[1752516652282,3.59,163.95,163.94,9.4394]
[1752516652681,5.08229279,163.99,163.98,6.098]
[1752516652979,4.57376023,163.99,163.95,3.34]
[1752516653379,3.59,163.98,163.95,3.34]
[1752516653885,3.59,163.98,163.97,6.0983]
[1752516655282,4.57376023,164.0,163.97,3.34]
[1752516655484,3.59,163.98,163.97,3.34]
[1752516655985,9.65605302,164.01,163.98,6.0976]
[1752516656481,15.75295302,164.01,163.98,6.0976]
[1752516656688,3.59,164.0,163.98,6.0976]
[1752516657289,8.67229279,164.02,163.97,3.34]
[1752516657486,3.59,164.02,163.97,3.34]
[1752516657889,3.59,164.02,164.01,9.4368]
[1752516658686,3.59,164.02,164.0,6.0971]
[1752516658886,3.59,164.01,164.0,9.4371]
[1752516659685,3.59,164.01,164.0,3.34]
[1752516659894,3.59,164.03,163.98,3.34]
[1752516660190,3.59,164.03,163.99,3.34]
[1752516661087,3.59,164.03,163.97,3.43]
[1752516661295,3.47,164.02,163.96,4.57376023]
[1752516661589,16.81254931,164.06,164.03,6.0961]
[1752516661788,3.47,164.04,164.01,3.43]
[1752516662291,3.47,164.04,164.03,6.0961]
[1752516662692,4.57376023,164.06,164.02,3.43]
[1752516662894,3.47,164.03,164.02,3.43]
[1752516663089,3.47,164.03,164.02,9.5263]
[1752516669390,3.47,164.03,164.02,6.0963]
[1752516670497,3.47,164.03,164.02,9.5263]
[1752516674703,3.47,164.03,164.02,3.43]
[1752516674999,3.47,164.02,164.01,3.43]
[1752516675301,3.47,164.02,164.01,9.5268]
[1752516678515,3.47,164.02,163.97,3.43]
[1752516678914,203.33605302,164.08,163.97,6.0981]
[1752516678915,3.47,164.0,163.97,6.0981]
[1752516679111,3.47,164.0,163.95,3.43]
[1752516679312,3.47,164.0,163.97,3.43]
[1752516679708,4.57376023,164.03,163.94,4.57376023]
[1752516679915,4.57376023,164.08,163.94,4.57376023]
[1752516679916,3.47,164.02,163.99,3.43]
[1752516680114,4.57376023,164.06,163.99,3.43]
[1752516680315,9.5656,164.05,164.02,6.0962]
[1752516680617,3.47,164.03,164.02,9.5262]
[1752516682616,3.47,164.03,164.02,6.0962]
[1752516684820,3.47,164.03,164.02,9.5262]
[1752516685920,3.47,164.03,164.02,6.0962]
[1752516687822,3.47,164.03,164.02,9.5262]
[1752516688522,3.47,164.06,164.02,3.43]
[1752516688719,3.47,164.08,164.03,4.57376023]
[1752516689025,3.47,164.07,164.04,3.43]
[1752516689322,3.47,164.06,164.05,9.5254]
[1752516690317,3.47,164.06,164.05,6.0954]
[1752516691722,3.47,164.06,164.04,6.0956]
[1752516691917,3.47,164.06,164.03,4.57376023]
[1752516692126,3.47,164.06,164.03,7.98376023]
[1752516692321,3.47,164.06,164.05,6.0954]
[1752516693823,3.47,164.06,164.05,9.5054]
[1752516697823,3.47,164.06,164.05,6.0954]
[1752516699327,3.47,164.06,164.05,9.5054]
[1752516701830,3.3,164.09,164.06,3.41]
[1752516703133,3.3,164.09,164.07,6.0944]
[1752516703635,9.3939,164.09,164.07,6.0944]
[1752516703834,3.3,164.08,164.06,9.5048]
[1752516704135,3.3,164.08,164.07,3.41]
[1752516704330,3.3,164.08,164.07,6.0944]
[1752516705036,3.3,164.08,164.07,9.5044]
[1752516705229,193.45475931,164.11,164.07,9.5044]
[1752516705434,193.45475931,164.11,164.08,3.41]
[1752516705435,3.3,164.09,164.08,3.41]
[1752516705637,3.3,164.1,164.08,3.41]
[1752516705833,3.3,164.1,164.09,3.41]
[1752516706028,3.3,164.13,164.08,3.41]
[1752516706234,3.3,164.14,164.1,3.41]
[1752516706638,3.3,164.14,164.13,6.0924]
[1752516706838,3.3,164.14,164.13,9.5024]
[1752516707039,3.3,164.14,164.1,3.41]
[1752516707333,3.3,164.14,164.11,3.41]
[1752516707735,3.3,164.14,164.12,6.0925]
[1752516709637,3.3,164.14,164.13,6.0924]
[1752516709946,3.3,164.14,164.13,9.5024]
[1752516710947,3.3,164.16,164.13,3.41]
[1752516711146,3.3,164.15,164.13,3.41]
[1752516711645,3.3,164.19,164.12,3.41]
[1752516712142,3.3,164.19,164.14,3.41]
[1752516712737,3.3,164.19,164.08,4.57376023]
[1752516712941,3.3,164.18,164.11,4.57376023]
[1752516713142,3.3,164.18,164.15,6.0915]
[1752516713444,3.3,164.18,164.14,3.41]
[1752516713644,3.3,164.18,164.15,3.41]
[1752516713843,3.3,164.18,164.16,6.091]
[1752516714440,9.3906,164.18,164.15,9.5015]
[1752516714644,6.0906,164.18,164.15,9.5015]
[1752516714844,3.3,164.16,164.15,3.41]
[1752516715144,3.3,164.16,164.15,9.5016]
[1752516715346,3.3,164.16,164.15,6.0916]
[1752516715848,3.3,164.16,164.15,9.5016]
[1752516720647,3.3,164.16,164.15,6.0916]
[1752516721245,3.3,164.16,164.15,9.4916]
[1752516721641,3.3,164.16,164.14,6.0919]
[1752516722045,3.3,164.16,164.13,3.4]
[1752516722246,187.9,164.2,164.09,3.4]
[1752516722247,3.5,164.13,164.09,3.4]
[1752516722454,3.5,164.13,164.07,7.97376023]
[1752516722650,3.5,164.13,164.07,4.57376023]
[1752516722847,3.5,164.13,164.1,3.4]
[1752516723044,3.5,164.13,164.11,3.4]
[1752516723248,6.0935,164.11,164.08,3.4]
[1752516723448,8.07376023,164.13,164.06,3.4]
[1752516723449,3.5,164.1,164.06,3.4]
[1752516724453,3.5,164.1,164.08,6.094]
[1752516726753,3.5,164.1,164.07,6.0945]
[1752516727455,3.5,164.1,164.08,6.0941]
[1752516728246,3.5,164.1,164.09,6.0939]
[1752516728650,3.5,164.1,164.09,9.4939]
[1752516731956,10.66636023,164.13,164.1,6.0934]
[1752516732152,4.57376023,164.13,164.1,9.4934]
[1752516732358,3.5,164.12,164.1,9.4934]
[1752516732559,4.57376023,164.13,164.11,6.093]
[1752516732760,3.5,164.12,164.11,6.093]
[1752516732960,3.5,164.14,164.1,3.4]
[1752516733259,3.5,164.16,164.11,4.57376023]
[1752516733458,3.5,164.16,164.12,3.4]
[1752516733758,3.5,164.16,164.14,6.0918]
[1752516735659,3.5,164.16,164.15,6.0916]
[1752516736059,3.5,164.16,164.15,9.4916]
[1752516736362,3.5,164.16,164.15,6.0916]
[1752516737157,3.5,164.16,164.15,9.4916]
[1752516737559,3.5,164.19,164.14,3.4]
[1752516737959,3.5,164.19,164.17,6.0907]
[1752516738154,3.5,164.19,164.15,3.4]
[1752516739461,3.5,164.19,164.14,3.4]
[1752516739759,3.5,164.19,164.16,3.4]
[1752516740160,3.5,164.19,164.17,6.0905]
[1752516740963,3.5,164.19,164.16,6.0912]
[1752516742160,9.5902,164.19,164.16,6.0912]
[1752516742357,3.5,164.18,164.14,6.0918]
[1752516742559,3.5,164.17,164.12,3.4]
[1752516743063,3.5,164.16,164.13,6.0921]
[1752516743561,3.5,164.16,164.14,6.0919]
[1752516746362,9.5914,164.16,164.13,9.4922]
[1752516746560,3.5,164.15,164.1,3.4]
[1752516746761,3.5,164.15,164.11,3.4]
[1752516746968,3.5,164.15,164.12,3.4]
[1752516747658,3.5,164.15,164.09,4.57376023]
[1752516747856,9.5918,164.15,164.11,9.4928]
[1752516748256,3.5,164.14,164.11,9.4928]
[1752516748460,3.5,164.13,164.11,6.0928]
[1752516749068,3.5,164.12,164.1,6.0935]
[1752516749265,3.5,164.12,164.09,3.4]
[1752516749477,3.5,164.11,164.08,9.4939]
[1752516750367,3.5,164.11,164.08,6.0939]
[1752516750368,3.5,164.1,164.08,6.0939]
[1752516750765,3.5,164.1,164.08,9.4139]
[1752516751568,10.66666023,164.12,164.08,9.4139]
[1752516751769,3.44,164.09,164.08,9.4139]
[1752516753167,3.44,164.09,164.07,6.0945]
[1752516753368,9.5342,164.09,164.05,3.32]
[1752516753564,3.44,164.08,164.04,118.35535493]
[1752516753871,3.44,164.08,164.04,121.67535493]
[1752516754071,3.44,164.08,164.05,3.32]
[1752516755369,14.10826023,164.08,164.05,6.0952]
[1752516755568,3.44,164.07,164.05,6.0952]
[1752516755771,3.44,164.07,164.04,118.35535493]
[1752516756070,3.44,164.07,164.04,127.77095493]
[1752516756272,3.44,164.07,164.04,9.4156]
[1752516757775,3.44,164.07,164.04,6.0956]
[1752516758468,3.44,164.07,164.04,9.4156]
[1752516758770,3.44,164.07,164.05,6.0953]
[1752516759072,3.44,164.07,164.05,3.32]
[1752516759274,10.66776023,164.09,164.06,6.095]
[1752516759570,4.57376023,164.12,164.05,3.32]
[1752516759776,4.57376023,164.12,164.07,6.0944]
[1752516759972,6.0937,164.1,164.07,9.4144]
[1752516760172,3.44,164.09,164.06,3.32]
[1752516760367,3.44,164.09,164.06,9.4148]
[1752516761073,3.44,164.08,164.05,6.0952]
[1752516761273,3.44,164.08,164.05,9.4152]
[1752516762581,3.44,164.08,164.04,6.0956]
[1752516762774,3.44,164.08,164.04,3.32]
[1752516764275,3.44,164.09,164.05,3.32]
[1752516764482,3.44,164.09,164.03,3.32]
[1752516764983,3.44,164.09,164.06,9.415]
[1752516765179,3.44,164.09,164.06,3.32]
[1752516765380,3.44,164.08,164.05,3.32]
[1752516765886,3.44,164.08,164.07,6.0946]
[1752516766080,3.44,164.08,164.07,9.4146]
[1752516767486,3.44,164.08,164.07,6.0946]
[1752516768081,4.57376023,164.12,164.09,6.0937]
[1752516768382,3.44,164.11,164.07,3.32]
[1752516768581,3.44,164.1,164.07,3.32]
[1752516769691,3.44,164.1,164.09,6.0939]
[1752516769885,3.44,164.1,164.09,9.4139]
[1752516770783,3.44,164.1,164.09,6.0939]
[1752516772885,3.44,164.1,164.09,9.4139]
[1752516773587,3.44,164.14,164.08,4.57376023]
[1752516773788,3.44,164.14,164.11,3.32]
[1752516774185,3.44,164.14,164.12,9.4125]
[1752516775089,3.44,164.14,164.13,6.0924]
[1752516775589,3.44,164.14,164.12,9.4126]
[1752516775888,3.44,164.14,164.12,6.0926]
[1752516777287,3.44,164.14,164.12,9.4126]
[1752516777482,3.44,164.13,164.12,9.4126]
[1752516777887,3.44,164.17,164.12,7.89376023]
[1752516778088,3.44,164.17,164.13,3.32]
[1752516778493,3.44,164.17,164.16,6.0913]
[1752516778693,3.44,164.17,164.16,9.4113]
[1752516779194,3.44,164.17,164.15,6.0915]
[1752516780690,3.44,164.17,164.16,6.0913]
[1752516781499,3.44,164.17,164.15,6.0915]
[1752516782099,3.44,164.17,164.16,6.0913]
[1752516783698,3.44,164.17,164.16,9.4213]
[1752516784391,3.44,164.17,164.16,6.0913]
[1752516785691,3.44,164.17,164.16,9.4213]
[1752516792708,188.7096,164.21,164.18,6.0904]
[1752516793108,182.62,164.21,164.17,3.33]
[1752516793312,3.44,164.2,164.17,3.33]
[1752516793500,182.62,164.21,164.19,6.0898]
[1752516793705,182.62,164.21,164.19,3.33]
[1752516794006,3.44,164.2,164.19,9.4202]
[1752516794209,9.67488502,164.24,164.19,3.33]
[1752516794210,3.44,164.22,164.19,3.33]
[1752516794402,3.44,164.21,164.19,3.33]
[1752516794605,3.44,164.22,164.21,9.4194]
[1752516795810,3.44,164.22,164.21,15.51669532]
[1752516796012,3.44,164.22,164.21,9.4194]
[1752516796211,3.44,164.22,164.21,15.51669532]
[1752516796608,3.44,164.22,164.21,12.18669532]
[1752516799111,3.44,164.22,164.21,12.1739022]
[1752516799308,3.44,164.22,164.17,3.33]
[1752516799515,3.44,164.22,164.18,9.4132602]
[1752516799812,3.44,164.22,164.19,6.0832602]
[1752516800011,3.44,164.22,164.2,6.0832602]
[1752516800212,3.44,164.22,164.19,6.0901]
[1752516800411,3.44,164.22,164.2,6.0819617]
[1752516800608,3.44,164.22,164.19,6.0901]
[1752516800816,3.44,164.22,164.2,6.0898]
[1752516801409,3.44,164.22,164.21,6.0894]
[1752516801615,3.44,164.22,164.21,3.33]
[1752516801913,3.44,164.22,164.17,3.33]
[1752516802106,3.44,164.22,164.19,6.0899]
[1752516802311,3.44,164.22,164.19,9.4199]
[1752516802611,3.44,164.22,164.19,3.33]
[1752516802910,3.44,164.22,164.2,6.0898]
[1752516804017,3.44,164.22,164.2,9.4198]
[1752516804213,3.44,164.22,164.21,6.0894]
[1752516804613,3.44,164.22,164.21,9.4194]
[1752516805718,3.44,164.22,164.21,15.56422919]
[1752516806916,3.44,164.22,164.21,6.14482919]
[1752516808116,3.44,164.22,164.21,12.23422919]
[1752516808919,3.44,164.22,164.21,6.14482919]
[1752516809320,3.44,164.22,164.19,3.33]
[1752516809523,3.44,164.22,164.2,12.2394244]
[1752516809722,3.44,164.22,164.2,6.0897]
[1752516810116,3.44,164.22,164.21,6.15025245]
[1752516811323,3.44,164.22,164.21,12.23965245]
[1752516811715,3.44,164.22,164.21,15.55965245]
[1752516812020,182.52,164.25,164.21,15.55965245]
[1752516812021,182.52,164.25,164.23,6.0886]
[1752516812620,3.3,164.24,164.23,6.0886]
[1752516812820,3.3,164.24,164.23,12.24411219]
[1752516813823,3.3,164.24,164.23,12.24661615]
[1752516814024,3.3,164.24,164.23,15.56661615]
[1752516815024,3.3,164.26,164.24,3.32]
[1752516815218,3.3,164.26,164.25,9.47801615]
[1752516815525,3.3,164.26,164.25,15.56591615]
[1752516815916,3.3,164.27,164.25,9.47801615]
[1752516816222,3.3,164.27,164.26,9.47801615]
[1752516817025,3.3,164.27,164.26,12.24561615]
[1752516817429,3.3,164.27,164.26,15.50328145]
[1752516818616,3.3,164.27,164.26,12.18328145]
[1752516818825,3.3,164.27,164.26,6.09568145]
[1752516819126,3.3,164.27,164.21,4.57376023]
[1752516819319,3.3,164.27,164.22,3.32]
[1752516819516,182.44,164.29,164.26,6.0873]
[1752516820118,3.3,164.28,164.27,6.0872]
[1752516820831,3.3,164.28,164.27,9.4072]
[1752516822428,3.3,164.3,164.29,3.32]
[1752516822827,3.3,164.3,164.28,9.4066]
[1752516823731,3.3,164.3,164.27,13.98086023]
[1752516823936,3.3,164.3,164.27,7.89376023]
[1752516824730,3.3,164.3,164.27,13.98086023]
[1752516825526,3.3,164.3,164.28,6.0868]
[1752516825731,3.3,164.3,164.26,4.57376023]
[1752516825931,3.3,164.3,164.27,3.32]
[1752516826132,3.3,164.3,164.27,9.407]
[1752516826432,3.3,164.3,164.27,3.32]
[1752516827129,3.3,164.3,164.26,4.57376023]
[1752516827330,3.3,164.3,164.28,6.0867]
[1752516827639,3.3,164.29,164.27,3.32]
[1752516828334,3.3,164.29,164.27,9.407]
[1752516831539,3.3,164.29,164.27,3.32]
[1752516832035,3.3,164.29,164.27,9.4072]
[1752516833639,3.3,164.29,164.27,6.0872]
[1752516833835,3.3,164.29,164.28,3.32]
[1752516834838,3.3,164.29,164.28,9.4068]
[1752516835739,5.10112479,164.35,164.29,6.0863]
[1752516835740,3.3,164.3,164.29,6.0863]
[1752516835937,3.3,164.3,164.29,9.4063]
[1752516836336,5.10112479,164.36,164.32,3.32]
[1752516836535,9.67488502,164.38,164.32,3.32]
[1752516836733,182.28,164.37,164.32,3.32]
[1752516836930,3.3,164.36,164.32,9.4051]
[1752516837135,3.3,164.35,164.32,9.4051]
[1752516837734,6.0844,164.35,164.32,3.32]
[1752516838036,3.3,164.33,164.31,6.0856]
[1752516838233,3.3,164.32,164.31,9.4056]
[1752516839944,185.54,164.33,164.32,6.0854]
[1752516840140,185.54,164.33,164.32,9.4054]
[1752516840541,182.24,164.33,164.32,9.4054]
[1752516840741,3.5,164.34,164.33,9.515]
[1752516843746,3.5,164.34,164.32,9.5153]
[1752516844954,3.5,164.33,164.32,9.5153]
[1752516845848,188.304,164.36,164.35,3.43]
[1752516845849,182.22,164.36,164.35,3.43]
[1752516846050,182.22,164.36,164.33,3.43]
[1752516846552,3.5,164.35,164.33,3.43]
[1752516847252,3.5,164.35,164.33,9.515]
[1752516850153,3.5,164.36,164.35,3.43]
[1752516850361,185.62,164.37,164.36,3.43]
[1752516850555,3.5,164.37,164.36,3.43]
[1752516851658,3.5,164.37,164.35,9.514]
[1752516852159,182.1,164.39,164.35,9.514]
[1752516852362,3.5,164.36,164.35,9.514]
[1752516853257,3.5,164.36,164.35,14.08776023]
[1752516856356,3.5,164.36,164.35,8.00376023]
[1752516856773,3.5,164.37,164.36,3.43]
[1752516856968,3.5,164.38,164.37,6.0828]
[1752516857467,3.5,164.41,164.38,6.0824]
[1752516857965,3.5,164.41,164.38,9.5124]
[1752516858369,3.5,164.41,164.35,4.57376023]
[1752516858671,3.5,164.41,164.37,3.43]
[1752516858869,6.0821,164.4,164.37,3.43]
[1752516859170,3.5,164.39,164.37,3.43]
[1752516861973,3.5,164.38,164.37,3.43]
[1752516862673,3.5,164.38,164.35,10.65736023]
[1752516862874,3.5,164.38,164.36,3.43]
[1752516863178,3.5,164.38,164.26,530.87859782]
[1752516863179,3.5,164.36,164.33,3.43]
[1752516864174,3.5,164.36,164.34,3.43]
[1752516864674,4.57376023,164.39,164.32,3.43]
[1752516864675,3.5,164.34,164.32,3.43]
[1752516865171,3.5,164.34,164.31,14.08876023]
[1752516865372,3.5,164.34,164.32,3.43]
[1752516866775,5.09613445,164.37,164.31,4.57376023]
[1752516866976,3.5,164.32,164.31,8.00376023]
[1752516867369,3.5,164.32,164.31,3.43]
[1752516867569,3.5,164.32,164.31,9.5152]
[1752516868572,3.5,164.32,164.3,9.5155]
[1752516868771,3.5,164.32,164.3,3.43]
[1752516869172,3.5,164.32,164.29,6.0858]
[1752516869378,3.5,164.32,164.28,3.43]
[1752516869576,3.5,164.32,164.25,3.43]
[1752516869768,6.0854,164.31,164.26,9.5169]
[1752516869972,3.5,164.3,164.27,3.43]
[1752516870375,6.0859,164.3,164.27,3.43]
[1752516870578,3.46,164.29,164.27,3.43]
[1752516871980,6.0854,164.31,164.26,6.087]
[1752516872173,3.46,164.3,164.28,3.5]
[1752516872375,3.46,164.31,164.28,3.5]
[1752516874380,3.46,164.31,164.28,9.5863]
[1752516877180,3.46,164.31,164.28,3.5]
[1752516877380,3.46,164.3,164.27,6.0865]
[1752516877879,3.46,164.3,164.27,9.5865]
[1752516880081,3.46,164.3,164.28,6.0863]
[1752516880883,3.46,164.3,164.29,6.0859]
[1752516881380,4.57376023,164.35,164.31,6.0851]
[1752516881982,3.46,164.35,164.32,3.5]
[1752516882180,3.46,164.35,164.28,4.57376023]
[1752516882381,3.46,164.35,164.31,3.5]
[1752516882781,6.0838,164.35,164.31,9.585]
[1752516883076,3.46,164.34,164.31,9.585]
[1752516883574,3.46,164.34,164.31,3.5]
[1752516883779,3.46,164.33,164.3,9.5854]
[1752516884281,3.46,164.32,164.27,3.5]
[1752516884481,3.46,164.31,164.27,3.5]
[1752516885380,9.5453,164.31,164.27,9.5865]
[1752516885681,3.46,164.3,164.28,3.5]
[1752516887085,3.46,164.3,164.28,9.5863]
[1752516889587,3.46,164.3,164.28,3.5]
[1752516890288,3.46,164.3,164.28,9.5863]
[1752516890581,3.46,164.3,164.29,3.5]
[1752516890782,3.46,164.3,164.28,3.5]
[1752516892482,3.46,164.31,164.28,9.5863]
[1752516893384,9.5452,164.31,164.28,3.5]
[1752516893584,3.46,164.3,164.28,3.5]
[1752516894989,3.46,164.3,164.24,4.57376023]
[1752516895186,3.46,164.3,164.26,3.5]
[1752516895481,3.46,164.33,164.27,3.5]
[1752516896180,3.46,164.33,164.3,6.0853]
[1752516896385,3.46,164.33,164.3,9.5853]
[1752516897786,3.46,164.33,164.31,6.0852]
[1752516898788,3.46,164.33,164.3,9.5854]
[1752516898988,3.46,164.33,164.31,3.5]
[1752516900590,3.46,164.33,164.3,9.6354]
[1752516900789,3.3,164.31,164.25,3.55]
[1752516900994,3.3,164.29,164.25,3.55]
[1752516901387,3.3,164.28,164.25,9.6372]
[1752516901788,4.57376023,164.28,164.19,712.66237136]
[1752516902093,3.3,164.25,164.21,3.55]
[1752516902286,3.3,164.23,164.19,9.6394]
[1752516902591,3.3,164.23,164.2,3.55]
[1752516902888,3.3,164.23,164.18,9.64]
[1752516903088,3.3,164.21,164.18,3.55]
[1752516903489,3.3,164.23,164.18,3.55]
[1752516903686,3.3,164.26,164.2,3.55]
[1752516903886,8.41054466,164.28,164.26,6.0868]
[1752516904091,3.3,164.28,164.27,3.55]
[1752516904393,3.3,164.27,164.26,9.637]
[1752516905482,6.0852,164.31,164.27,6.0865]
[1752516905685,5.11054466,164.32,164.25,4.5714804]
[1752516905882,3.3,164.32,164.26,3.55]
[1752516906087,6.0853,164.31,164.27,6.0864]
[1752516906592,6.0853,164.31,164.28,3.55]
[1752516906793,3.3,164.29,164.28,3.55]
[1752516907793,3.3,164.29,164.28,9.6363]
[1752516907989,10.74167611,164.33,164.28,9.6363]
[1752516907990,3.3,164.31,164.28,9.6363]
[1752516908190,3.3,164.3,164.29,3.55]
[1752516908492,3.3,164.3,164.29,9.6359]
[1752516909386,3.3,164.32,164.31,3.55]
[1752516909989,3.3,164.32,164.31,9.6352]
[1752516910289,3.3,164.32,164.3,3.55]
[1752516911196,3.3,164.32,164.3,9.6354]
[1752516913199,6.0842,164.34,164.3,9.6354]
[1752516913399,3.3,164.33,164.31,3.55]
[1752516914096,3.3,164.33,164.3,6.0854]
[1752516914396,3.3,164.32,164.3,3.55]
[1752516914588,3.3,164.32,164.29,6.0859]
[1752516914589,3.3,164.32,164.29,3.55]
[1752516914988,3.3,164.3,164.29,3.55]
[1752516915395,3.3,164.3,164.25,8.11497471]
[1752516915598,3.3,164.29,164.26,9.6368]
[1752516915995,6.0853,164.31,164.27,9.6366]
[1752516916200,3.3,164.28,164.27,9.6366]
[1752516916999,6.085,164.32,164.27,6.0866]
[1752516917200,3.3,164.29,164.28,3.55]
[1752516917799,3.3,164.29,164.25,8.11497471]
[1752516918103,3.3,164.31,164.27,3.55]
[1752516918500,6.0858,164.3,164.27,3.55]
[1752516918902,3.3,164.28,164.27,3.55]
[1752516919503,3.3,164.27,164.25,6.0873]
[1752516919703,4.56497471,164.31,164.25,9.6373]
[1752516919905,9.3849,164.32,164.28,9.6361]
[1752516920202,3.3,164.3,164.29,3.55]
[1752516920403,3.3,164.3,164.28,3.55]
[1752516920904,3.3,164.29,164.26,3.55]
[1752516921103,3.3,164.31,164.27,6.0864]
[1752516921401,3.3,164.31,164.27,9.6364]
[1752516921601,3.3,164.3,164.27,9.6364]
[1752516921804,3.3,164.3,164.28,3.55]
[1752516922006,3.3,164.3,164.28,9.6363]
[1752516922203,3.3,164.29,164.28,9.6363]
[1752516923208,3.3,164.29,164.28,3.55]
[1752516929815,3.3,164.33,164.29,3.55]
[1752516930216,6.0847,164.33,164.29,6.0857]
[1752516930516,3.5,164.32,164.31,3.5]
[1752516935616,3.5,164.32,164.31,9.5852]
[1752516937223,3.5,164.34,164.33,9.5842]
[1752516938816,3.5,164.34,164.33,14.14917471]
[1752516939422,6.0826,164.39,164.33,4.56497471]
[1752516939725,181.16,164.4,164.33,4.56497471]
[1752516940028,3.5,164.37,164.36,6.0831]
[1752516940226,3.5,164.37,164.36,9.5831]
[1752516943426,3.5,164.39,164.36,3.5]
[1752516944030,3.5,164.39,164.38,9.5825]
[1752516944430,3.5,164.41,164.37,4.56497471]
[1752516944723,3.5,164.41,164.4,9.5817]
[1752516945519,3.5,164.43,164.42,6.0809]
[1752516945722,3.5,164.43,164.42,9.5809]
[1752516947930,3.5,164.46,164.44,6.0801]
[1752516948134,3.5,164.46,164.44,3.5]
[1752516948434,3.5,164.45,164.44,3.5]
[1752516948832,3.5,164.46,164.44,3.5]
[1752516949032,3.5,164.46,164.45,3.5]
[1752516949236,3.5,164.46,164.45,9.58]
[1752516950236,3.5,164.48,164.46,3.5]
[1752516950435,3.5,164.47,164.44,3.5]
[1752516950938,3.5,164.47,164.43,4.56497471]
[1752516950939,9.5793,164.47,164.43,4.56497471]
[1752516951138,3.5,164.46,164.42,3.5]
[1752516951343,3.5,164.46,164.44,6.0803]
[1752516952239,3.5,164.46,164.43,6.0806]
[1752516952432,3.5,164.46,164.4,8.06497471]
[1752516952941,3.5,164.44,164.41,6.0813]
[1752516953142,3.5,164.44,164.4,8.06497471]